bitfinex-derivatives/quotes_ETHF0:USTF0_20210402
["timestamp","ask_amount","ask_price","bid_price","bid_amount"]
[1617337805377,2.90695,1992.7,1992.4,4.19515]
[1617337805579,4.51026788,1992.8,1992.4,4.19515]
[1617337805980,1.15142861,1992.9,1992.4,4.19515]
[1617337807379,1.15142861,1992.9,1992.8,2.90695]
[1617337807579,1.15142861,1992.9,1992.8,4.46795]
[1617337811482,66.03982861,1992.9,1992.8,4.46795]
[1617337811884,69.38549803,1992.9,1992.8,4.46795]
[1617337812483,4.49709803,1992.9,1992.8,4.46795]
[1617337813083,2.90695,1993.1,1992.8,4.46795]
[1617337813283,6.46705627,1993.3,1992.8,4.46795]
[1617337813486,3.74416543,1993.3,1993.2,2.90695]
[1617337813684,2.571,1993.3,1993.2,4.12045]
[1617337814484,3.5848,1993.3,1993.2,4.12045]
[1617337814687,5.61999634,1993.3,1993.2,4.12045]
[1617337815085,3.04899634,1993.3,1993.2,4.12045]
[1617337816787,2.03519634,1993.3,1993.2,4.12045]
[1617337818088,5.23494015,1993.7,1993.2,4.12045]
[1617337818089,2.03146095,1993.4,1993.2,4.12045]
[1617337820289,1.02836095,1993.4,1993.2,4.12045]
[1617337823295,1.16021621,1993.4,1993.2,4.12045]
[1617337823695,2.90791688,1993.6,1993.2,4.12045]
[1617337824802,2.90791688,1993.6,1993.2,34.12045]
[1617337825201,0.92745347,1993.3,1993.2,34.12045]
[1617337826000,0.92745347,1993.3,1993.2,36.12045]
[1617337826301,0.92762821,1993.4,1993.2,36.12045]
[1617337827401,1.08406348,1993.6,1993.2,36.12045]
[1617337827602,1.08406348,1993.6,1993.5,2.90695]
[1617337831907,4.9424843,1993.8,1993.5,2.90695]
[1617337832107,2.90695,1993.8,1993.5,2.90695]
[1617337833708,2.90695,1993.8,1993.7,2.90695]
[1617337833909,2.90695,1993.8,1993.7,4.54045]
[1617337834311,1.90385,1993.8,1993.7,4.54045]
[1617337835811,5.47795,1994.0,1993.7,4.54045]
[1617337836013,0.55772301,1993.9,1993.7,4.54045]
[1617337841318,2.46157301,1994.0,1993.7,4.54045]
[1617337841820,2.46157301,1994.0,1993.9,2.90695]
[1617337848434,1.45847301,1994.0,1993.9,2.90695]
[1617337849034,2.15166926,1994.0,1993.9,2.90695]
[1617337849835,0.69319625,1994.0,1993.9,2.90695]
[1617337854045,0.69271768,1994.1,1993.9,2.90695]
[1617337855145,3.59974003,1994.2,1993.9,2.90695]
[1617337855344,2.59664003,1994.2,1993.9,2.90695]
[1617337855945,2.59664003,1994.2,1994.1,2.90695]
[1617337856145,2.59664003,1994.2,1994.1,4.10745]
[1617337856845,0.69279003,1994.2,1994.1,4.10745]
[1617337857748,0.69247193,1994.3,1994.1,4.10745]
[1617337858148,0.69246605,1994.2,1994.1,4.10745]
[1617337858350,0.69246605,1994.2,1994.1,34.10745]
[1617337858549,0.69257521,1994.3,1994.1,34.10745]
[1617337858949,2.69089744,1994.5,1994.1,34.10745]
[1617337859153,0.69300283,1994.6,1994.1,34.10745]
[1617337859753,0.69300283,1994.6,1994.3,30.0]
[1617337859952,0.69300283,1994.6,1994.5,2.90695]
[1617337860153,0.69300283,1994.6,1994.5,4.47515]
[1617337860354,0.69312495,1994.7,1994.5,4.47515]
[1617337861153,0.69309439,1994.6,1994.5,4.47515]
[1617337862453,0.61412024,1994.8,1994.5,4.47515]
[1617337863058,0.61412024,1994.8,1994.5,2.90695]
[1617337863459,1.15651773,1994.9,1994.5,2.90695]
[1617337864260,1.15651773,1994.9,1994.8,2.90695]
[1617337864859,2.27890397,1995.0,1994.8,2.90695]
[1617337866362,1.15723855,1994.9,1994.8,2.90695]
[1617337866561,2.27932041,1995.0,1994.8,2.90695]
[1617337869365,1.27622041,1995.0,1994.8,2.90695]
[1617337869566,0.11893464,1995.0,1994.8,2.90695]
[1617337872270,1.27775949,1995.0,1994.8,2.90695]
[1617337872867,0.11893464,1995.0,1994.8,2.90695]
[1617337873568,82.4885,1995.1,1994.8,2.90695]
[1617337874170,82.4885,1995.1,1995.0,2.37775269]
[1617337875973,83.64687069,1995.1,1995.0,2.37775269]
[1617337876376,82.64377069,1995.1,1995.0,2.37775269]
[1617337876575,83.65707069,1995.1,1995.0,2.37775269]
[1617337876775,82.64377069,1995.1,1995.0,2.37775269]
[1617337878475,81.4854,1995.1,1995.0,2.37775269]
[1617337878875,82.64451169,1995.1,1995.0,2.37775269]
[1617337879876,82.64451169,1995.1,1995.0,3.92115269]
[1617337880076,81.4854,1995.1,1995.0,3.92115269]
[1617337880278,0.0017,1995.1,1995.0,3.92115269]
[1617337880476,1.16104616,1995.1,1995.0,3.92115269]
[1617337880676,1.16104616,1995.1,1995.0,2.37775269]
[1617337880877,0.0017,1995.1,1995.0,2.37775269]
[1617337881077,4.20652717,1995.1,1995.0,2.37775269]
[1617337881677,6.20652717,1995.1,1993.5,30.0]
[1617337881879,80.7284,1994.2,1993.5,30.0]
[1617337882078,82.3477,1994.2,1993.5,30.0]
[1617337882279,82.3477,1994.2,1994.1,2.90695]
[1617337884983,80.7284,1994.2,1994.1,2.90695]
[1617337885183,1.15953424,1994.7,1994.1,2.90695]
[1617337885388,77.1516,1994.6,1994.1,2.90695]
[1617337886384,77.1516,1994.6,1994.5,2.90695]
[1617337888390,79.18918755,1994.6,1994.5,2.90695]
[1617337890193,77.1516,1994.6,1994.5,2.90695]
[1617337890893,79.18783975,1994.6,1994.5,2.90695]
[1617337894797,2.03623975,1994.6,1994.5,2.90695]
[1617337894997,2.90743854,1994.7,1994.5,2.90695]
[1617337895397,2.03644253,1994.6,1994.5,2.90695]
[1617337901912,2.90646378,1994.7,1994.5,2.90695]
[1617337903113,2.03644876,1994.6,1994.5,2.90695]
[1617337903513,1.91041982,1994.6,1994.5,2.90695]
[1617337905613,2.571,1994.8,1994.5,2.90695]
[1617337906414,2.571,1994.8,1994.7,2.38659856]
[1617337910420,5.64712569,1994.8,1994.7,2.38659856]
[1617337911120,1.5693,1994.8,1994.7,2.38659856]
[1617337912522,1.5693,1994.8,1994.7,4.01139856]
[1617337914425,1.5693,1994.8,1994.7,2.38659856]
[1617337914926,5.64717066,1994.8,1994.7,2.38659856]
[1617337915228,13.5823056,1994.9,1994.7,2.38659856]
[1617337917428,12.5806056,1994.9,1994.7,2.38659856]
[1617337917933,4.08390149,1994.8,1994.7,0.61549856]
[1617337918128,5.24967698,1994.9,1994.7,0.61549856]
[1617337918333,69.9305,1994.8,1993.6,30.0]
[1617337918535,6.81992823,1994.8,1994.3,2.90695]
[1617337918942,4.0843654,1994.5,1994.3,2.90695]
[1617337919129,2.0,1994.4,1994.3,2.90695]
[1617337919329,3.2244,1994.4,1994.3,2.90695]
[1617337920129,61.7936,1994.4,1994.3,2.90695]
[1617337920537,72.88780936,1994.4,1994.3,2.90695]
[1617337921138,72.88780936,1994.4,1993.1,99.9403]
[1617337921539,72.88780936,1994.4,1993.1,69.9403]
[1617337921740,72.88780936,1994.4,1992.3,2.0]
[1617337921741,0.93327303,1993.6,1992.4,30.0]
[1617337921940,72.59947303,1993.6,1992.7,101.6662]
[1617337922341,1.99428152,1993.5,1992.7,101.6662]
[1617337922541,1.99428152,1993.5,1993.4,2.90695]
[1617337922942,1.99428152,1993.5,1993.4,73.17155]
[1617337923340,0.93292774,1993.5,1993.4,73.17155]
[1617337923640,0.93236774,1993.6,1993.4,73.17155]
[1617337924041,0.93224511,1993.5,1993.4,73.17155]
[1617337924441,1.09623262,1993.8,1993.4,73.17155]
[1617337924641,1.09623262,1993.8,1993.7,2.90695]
[1617337925041,1.0607045,1993.9,1993.7,2.90695]
[1617337927448,3.10519924,1993.9,1993.7,2.90695]
[1617337929248,4.11989924,1993.9,1993.7,2.90695]
[1617337929448,4.11989924,1993.9,1992.4,30.0]
[1617337929649,4.11989924,1993.9,1992.4,1.0056]
[1617337929650,63.6077,1993.7,1992.4,1.0056]
[1617337929849,63.6077,1993.7,1992.3,63.5949]
[1617337929850,0.69917095,1992.8,1992.3,63.5949]
[1617337930049,0.69917095,1992.8,1990.6,30.0]
[1617337930250,57.7436,1992.5,1991.7,57.7436]
[1617337930449,57.7436,1992.5,1991.7,87.7436]
[1617337930652,57.7436,1992.5,1992.4,2.90695]
[1617337931451,56.7419,1992.5,1992.4,2.90695]
[1617337931851,0.69877562,1992.6,1992.4,2.90695]
[1617337932051,79.2307,1993.1,1992.4,82.13765]
[1617337932452,0.69901793,1992.7,1992.4,82.13765]
[1617337932652,0.69901793,1992.7,1992.6,2.90695]
[1617337933953,79.2307,1993.1,1992.6,2.90695]
[1617337934653,79.2307,1993.1,1993.0,1.86339917]
[1617337935455,81.27249635,1993.1,1993.0,1.86339917]
[1617337935755,79.2307,1993.1,1993.0,1.86339917]
[1617337936858,81.2741399,1993.1,1993.0,1.86339917]
[1617337938561,80.2724399,1993.1,1993.0,1.86339917]
[1617337938865,78.229,1993.1,1993.0,1.86339917]
[1617337940961,78.229,1993.1,1993.0,0.11289917]
[1617337942663,78.229,1993.1,1992.8,2.90695]
[1617337943064,0.47935516,1993.0,1992.8,2.90695]
[1617337944765,2.90695,1992.9,1992.8,2.90695]
[1617337945365,3.38480511,1992.9,1992.8,2.90695]
[1617337945566,2.38310511,1992.9,1992.8,2.90695]
[1617337945967,3.08116364,1992.9,1992.8,2.90695]
[1617337946566,1.17591364,1992.9,1992.8,2.90695]
[1617337947168,0.69839519,1993.1,1992.8,2.90695]
[1617337947367,0.69839519,1993.1,1992.8,4.27985]
[1617337947768,1.17659717,1993.2,1993.1,78.452]
[1617337948569,1.20073643,1993.3,1993.1,78.452]
[1617337948768,1.20073643,1993.3,1993.2,2.90695]
[1617337948970,0.69828148,1993.3,1993.2,4.25835]
[1617337949368,1.20090718,1993.3,1993.2,4.25835]
[1617337949568,0.69828148,1993.3,1993.2,4.25835]
[1617337952471,0.9968,1993.3,1993.2,4.25835]
[1617337952669,0.49941528,1993.3,1993.2,4.25835]
[1617337953570,0.49204755,1993.4,1993.2,4.25835]
[1617337959473,14.2252491,1993.5,1993.2,4.25835]
[1617337959873,14.2252491,1993.5,1993.2,2.90695]
[1617337960476,0.93232718,1993.4,1993.2,2.90695]
[1617337960874,3.83927718,1993.4,1993.2,2.90695]
[1617337961876,2.90695,1993.4,1993.2,2.90695]
[1617337962876,14.22612853,1993.5,1993.2,2.90695]
[1617337963080,0.9323077,1993.4,1993.2,4.28345]
[1617337963279,14.2261594,1993.5,1993.2,4.28345]
[1617337963679,0.9323308,1993.4,1993.2,4.28345]
[1617337964580,14.22642574,1993.5,1993.2,4.28345]
[1617337964981,14.22642574,1993.5,1993.4,2.90695]
[1617337966280,13.29384755,1993.5,1993.4,2.90695]
[1617337966480,12.29214755,1993.5,1993.4,2.90695]
[1617337967483,13.22483456,1993.5,1993.4,2.90695]
[1617337968984,12.29214755,1993.5,1993.4,2.90695]
[1617337972490,13.2254533,1993.5,1993.4,2.90695]
[1617337975795,12.29214755,1993.5,1993.4,2.90695]
[1617337977697,13.22658302,1993.5,1993.4,2.90695]
[1617337978098,12.29214755,1993.5,1993.4,2.90695]
[1617337980000,13.22693572,1993.5,1993.4,2.90695]
[1617337980299,12.29214755,1993.5,1993.4,2.90695]
[1617337984603,13.22533496,1993.5,1993.4,2.90695]
[1617337986307,12.29214755,1993.5,1993.4,2.90695]
[1617337986508,78.25564755,1993.5,1993.4,2.90695]
[1617337988707,65.9635,1993.5,1993.4,2.90695]
[1617337992910,66.89762511,1993.5,1993.4,2.90695]
[1617337997017,65.9635,1993.5,1993.4,2.90695]
[1617337997421,66.89926626,1993.5,1993.4,2.90695]
[1617337998519,65.9635,1993.5,1993.4,2.90695]
[1617337999820,4.07708406,1993.6,1993.4,2.90695]
[1617338000227,0.93694059,1993.5,1993.4,2.90695]
[1617338000621,0.93694059,1993.5,1993.4,4.90695]
[1617338001625,9.19016874,1994.5,1993.4,4.90695]
[1617338001626,0.93728394,1993.6,1993.4,4.90695]
[1617338001825,0.93728394,1993.6,1993.5,74.2843]
[1617338002025,0.93728394,1993.6,1993.5,75.6237]
[1617338002426,0.93721572,1993.7,1993.5,75.6237]
[1617338002627,1.10603538,1993.9,1993.5,75.6237]
[1617338003228,1.10603538,1993.9,1993.8,2.90695]
[1617338004029,2.05314608,1994.2,1993.8,2.90695]
[1617338004428,2.05314608,1994.2,1993.8,32.90695]
[1617338004829,5.5028106,1994.4,1993.8,32.90695]
[1617338004830,4.62544456,1994.4,1993.8,32.90695]
[1617338005028,4.62544456,1994.4,1994.2,62.9256]
[1617338005230,2.05444456,1994.4,1994.3,2.90695]
[1617338005829,3.04954456,1994.4,1994.3,2.90695]
[1617338006730,2.05444456,1994.4,1994.3,2.90695]
[1617338008131,5.84427502,1994.5,1994.3,2.90695]
[1617338008733,2.05677728,1994.4,1994.3,2.90695]
[1617338009633,1.05407728,1994.4,1994.3,2.90695]
[1617338010236,83.99042665,1994.5,1994.3,2.90695]
[1617338010533,3.21756699,1994.4,1994.3,2.90695]
[1617338014939,81.05345,1994.5,1994.3,2.90695]
[1617338016740,80.05075,1994.5,1994.3,2.90695]
[1617338017140,78.1465,1994.5,1994.3,2.90695]
[1617338022750,79.31860512,1994.5,1994.3,2.90695]
[1617338025854,78.1465,1994.5,1994.3,2.90695]
[1617338030660,1.17175482,1994.7,1994.3,2.90695]
[1617338031460,1.17175482,1994.7,1994.6,2.90695]
[1617338031662,1.17175482,1994.7,1994.6,4.52905]
[1617338036364,1.17119416,1994.8,1994.6,4.52905]
[1617338036964,0.93703718,1994.7,1994.6,4.52905]
[1617338037665,1.10563365,1994.9,1994.6,4.52905]
[1617338038168,2.05227236,1995.0,1994.6,4.52905]
[1617338039566,9.96381727,1995.1,1994.9,2.90695]
[1617338040666,3.5831,1995.1,1994.9,2.90695]
[1617338041166,0.0017,1995.1,1994.9,2.90695]
[1617338042166,1.0062,1995.1,1994.9,2.90695]
[1617338044668,0.0035,1995.1,1994.9,2.90695]
[1617338045269,0.0035,1995.1,1995.0,61.5909]
[1617338045469,0.0035,1995.1,1995.0,62.8627]
[1617338047870,1.11796313,1995.2,1995.0,62.8627]
[1617338048072,2.13516313,1995.2,1995.0,62.8627]
[1617338049076,2.90695,1995.3,1995.0,62.8627]
[1617338049678,2.90695,1995.3,1995.2,2.90695]
[1617338050077,3.91995,1995.3,1995.2,2.90695]
[1617338051777,1.90425,1995.3,1995.2,2.90695]
[1617338052378,2.05138162,1995.5,1995.2,2.90695]
[1617338052878,3.04578162,1995.5,1995.2,2.90695]
[1617338053579,3.04578162,1995.5,1995.4,2.90695]
[1617338053779,3.04578162,1995.5,1995.4,4.05935]
[1617338054181,0.9944,1995.5,1995.4,4.05935]
[1617338058787,2.29323413,1995.6,1995.4,4.05935]
[1617338059687,3.28963413,1995.6,1995.4,4.05935]
[1617338060888,0.9964,1995.6,1995.4,4.05935]
[1617338061087,0.9964,1995.6,1995.5,76.14375871]
[1617338065791,3.15823665,1995.7,1995.5,76.14375871]
[1617338066393,3.15849143,1995.7,1995.5,76.14375871]
[1617338066795,4.16059143,1995.7,1995.5,76.14375871]
[1617338067395,2.9901,1995.7,1995.5,76.14375871]
[1617338067696,2.9901,1995.7,1995.6,2.90695]
[1617338068897,4.16063134,1995.7,1995.6,2.90695]
[1617338069799,2.9901,1995.7,1995.6,2.90695]
[1617338071600,0.9861,1995.7,1995.6,2.90695]
[1617338072901,2.15789442,1995.7,1995.6,2.90695]
[1617338074803,1.15629442,1995.7,1995.6,2.90695]
[1617338075417,3.20011242,1995.9,1995.6,2.90695]
[1617338075418,1.1465427,1995.9,1995.6,2.90695]
[1617338075810,1.1465427,1995.9,1995.8,2.90695]
[1617338076010,1.1465427,1995.9,1995.8,4.28095]
[1617338077410,83.2144427,1995.9,1995.8,2.90695]
[1617338077808,82.2128427,1995.9,1995.8,2.90695]
[1617338079508,0.1449427,1995.9,1995.8,2.90695]
[1617338081912,19.4081927,1996.0,1995.8,2.90695]
[1617338082112,17.69385,1996.0,1995.8,2.90695]
[1617338082714,19.75123829,1996.0,1995.8,2.90695]
[1617338084317,17.69385,1996.0,1995.8,2.90695]
[1617338084816,16.69225,1996.0,1995.8,2.90695]
[1617338085016,2.90695,1996.0,1995.8,2.90695]
[1617338085416,2.90695,1996.0,1995.9,60.6314]
[1617338086018,4.96450606,1996.0,1995.9,60.6314]
[1617338087818,2.90695,1996.0,1995.9,60.6314]
[1617338088718,1.90535,1996.0,1995.9,60.6314]
[1617338089819,3.05999673,1996.1,1995.9,60.6314]
[1617338090017,1.0037,1996.1,1995.9,60.6314]
[1617338091822,0.60920135,1996.1,1996.0,2.90695]
[1617338094226,2.66729008,1996.1,1996.0,2.90695]
[1617338095829,1.66569008,1996.1,1996.0,2.90695]
[1617338096429,2.90695,1996.2,1996.0,2.90695]
[1617338096829,3.91265,1996.2,1996.0,2.90695]
[1617338097831,3.91265,1996.2,1996.0,83.64685]
[1617338098938,2.91105,1996.2,1996.0,83.64685]
[1617338099845,1.0057,1996.2,1996.0,83.64685]
[1617338102840,0.0041,1996.2,1996.0,83.64685]
[1617338103539,0.0041,1996.2,1996.0,2.90695]
[1617338104142,1.17370871,1996.1,1996.0,2.90695]
[1617338104342,0.0041,1996.2,1996.0,2.90695]
[1617338104542,0.0041,1996.2,1996.1,77.7717]
[1617338105845,0.184,1996.3,1996.1,77.7717]
[1617338106046,3.12312545,1996.3,1996.1,77.7717]
[1617338106847,4.12572545,1996.3,1996.1,77.7717]
[1617338107547,2.05818627,1996.2,1996.1,77.7717]
[1617338108248,3.24473417,1996.3,1996.1,77.7717]
[1617338108549,2.05812997,1996.2,1996.1,77.7717]
[1617338109751,1.87262997,1996.2,1996.1,77.7717]
[1617338114054,1.87262997,1996.2,1996.0,2.90695]
[1617338114256,63.45902997,1996.2,1996.0,2.90695]
[1617338114459,4.58923876,1996.1,1996.0,2.90695]
[1617338115157,2.35429713,1996.1,1996.0,2.90695]
[1617338115560,1.18140592,1996.1,1996.0,2.90695]
[1617338117164,1.1866,1996.3,1996.0,2.90695]
[1617338117359,1.1866,1996.3,1996.0,4.55165]
[1617338117560,1.1866,1996.3,1996.2,81.2263]
[1617338117960,1.1866,1996.3,1996.2,84.13325]
[1617338119262,4.12443688,1996.3,1996.2,84.13325]
[1617338122667,4.12443688,1996.3,1996.2,2.90695]
[1617338122868,6.12443688,1996.3,1996.2,2.90695]
[1617338123070,3.1866,1996.3,1996.2,2.90695]
[1617338123470,7.29787753,1996.3,1996.2,2.90695]
[1617338123870,3.1866,1996.3,1996.2,2.90695]
[1617338124875,7.29817418,1996.3,1996.2,2.90695]
[1617338125673,81.49847418,1996.3,1996.2,2.90695]
[1617338125974,90.48880138,1996.3,1996.2,2.90695]
[1617338126273,91.66694324,1996.3,1996.2,2.90695]
[1617338132480,91.66694324,1996.3,1995.2,83.3306]
[1617338132878,0.93911676,1995.3,1995.2,83.3306]
[1617338133082,0.93911676,1995.3,1994.3,2.0]
[1617338133278,85.38215624,1995.4,1995.0,84.2084]
[1617338133678,0.93904797,1995.2,1995.0,84.2084]
[1617338134078,0.93904797,1995.2,1995.1,2.90695]
[1617338134479,3.00776127,1995.3,1995.1,2.90695]
[1617338135479,1.17550068,1995.2,1995.1,2.90695]
[1617338135879,3.00780208,1995.3,1995.1,2.90695]
[1617338136079,1.17540135,1995.3,1995.1,2.90695]
[1617338138082,1.17540135,1995.3,1995.2,66.5875]
[1617338138282,2.05983078,1995.4,1995.2,66.5875]
[1617338138682,1.17535238,1995.3,1995.2,66.5875]
[1617338138883,1.17535238,1995.3,1995.2,69.49445]
[1617338145391,2.06038884,1995.4,1995.2,69.49445]
[1617338152497,2.06038884,1995.4,1995.2,66.5875]
[1617338153200,2.06038884,1995.4,1995.3,2.90695]
[1617338156505,2.94647992,1995.4,1995.3,2.90695]
[1617338158809,4.12227923,1995.5,1995.3,2.90695]
[1617338159207,0.64719404,1995.4,1995.3,2.90695]
[1617338159609,4.12227923,1995.5,1995.3,2.90695]
[1617338163811,4.12138176,1995.4,1995.3,2.90695]
[1617338164211,4.76839823,1995.4,1995.3,2.90695]
[1617338164411,4.12138176,1995.4,1995.3,2.90695]
[1617338167019,4.77179984,1995.5,1995.3,2.90695]
[1617338167417,4.12528961,1995.4,1995.3,2.90695]
[1617338167819,2.94836968,1995.4,1995.3,2.90695]
[1617338168018,3.59400107,1995.4,1995.3,2.90695]
[1617338168420,2.94836968,1995.4,1995.3,2.90695]
[1617338168819,2.94836968,1995.4,1995.3,32.90695]
[1617338169019,2.9490561,1995.5,1995.4,76.5739]
[1617338169221,2.06657344,1995.6,1995.4,106.5739]
[1617338169419,2.06657344,1995.6,1995.4,108.5739]
[1617338170122,1.17942184,1995.5,1995.4,108.5739]
[1617338170722,1.17938989,1995.6,1995.4,108.5739]
[1617338170921,0.17818989,1995.6,1995.4,108.5739]
[1617338171122,0.6350808,1995.5,1995.4,108.5739]
[1617338171322,0.17818989,1995.6,1995.4,108.5739]
[1617338171723,1.57860846,1995.5,1995.4,108.5739]
[1617338172322,2.0669457,1995.8,1995.4,108.5739]
[1617338173322,2.0669457,1995.8,1995.7,2.90695]
[1617338173522,2.0669457,1995.8,1995.7,4.50785]
[1617338174524,4.13104803,1996.1,1995.7,4.50785]
[1617338175423,4.13104803,1996.1,1996.0,2.90695]
[1617338176826,13.65483955,1996.1,1996.0,2.90695]
[1617338177927,9.52379152,1996.1,1996.0,2.90695]
[1617338179426,17.73811555,1996.1,1996.0,2.90695]
[1617338180127,12.43074152,1996.1,1996.0,2.90695]
[1617338180528,17.73805351,1996.1,1996.0,2.90695]
[1617338181229,12.43074152,1996.1,1996.0,2.90695]
[1617338184330,17.10299701,1996.1,1996.0,2.90695]
[1617338184930,16.10179701,1996.1,1996.0,2.90695]
[1617338185929,10.79435978,1996.1,1996.0,2.90695]
[1617338190743,16.10233624,1996.1,1996.0,2.90695]
[1617338191243,10.79435978,1996.1,1996.0,2.90695]
[1617338191943,9.79315978,1996.1,1996.0,2.90695]
[1617338192547,15.10113695,1996.1,1996.0,2.90695]
[1617338194049,9.79315978,1996.1,1996.0,2.90695]
[1617338195649,10.85975978,1996.1,1996.0,2.90695]
[1617338198754,9.79315978,1996.1,1996.0,2.90695]
[1617338198957,8.79195978,1996.1,1996.0,2.90695]
[1617338200558,14.10081327,1996.1,1996.0,2.90695]
[1617338201259,8.79195978,1996.1,1996.0,2.90695]
[1617338205865,7.79075978,1996.1,1996.0,2.90695]
[1617338209369,13.09916162,1996.1,1996.0,2.90695]
[1617338209769,5.30840184,1996.1,1996.0,2.90695]
[1617338210769,5.30840184,1996.1,1996.0,74.86635]
[1617338211970,7.87965642,1996.2,1996.0,74.86635]
[1617338212871,6.87845642,1996.2,1996.0,74.86635]
[1617338213274,5.30865642,1996.2,1996.0,74.86635]
[1617338213475,4.12873553,1996.1,1996.0,74.86635]
[1617338214476,4.12860863,1996.2,1996.0,74.86635]
[1617338216277,4.12873252,1996.1,1996.0,74.86635]
[1617338218178,0.61770039,1996.1,1996.0,74.86635]
[1617338218778,0.61770039,1996.1,1996.0,2.90695]
[1617338219380,5.92567433,1996.1,1996.0,2.90695]
[1617338219580,79.45447433,1996.1,1996.0,2.90695]
[1617338219980,87.17361029,1996.1,1996.0,2.90695]
[1617338226990,86.17241029,1996.1,1996.0,2.90695]
[1617338233496,87.51721029,1996.1,1996.0,2.90695]
[1617338233894,87.51721029,1996.1,1995.8,2.90695]
[1617338234095,89.08024554,1996.1,1995.8,2.90695]
[1617338234295,8.61404405,1996.0,1995.8,2.90695]
[1617338235397,6.48781394,1996.0,1995.8,2.90695]
[1617338235797,36.4857602,1995.9,1995.8,2.90695]
[1617338235997,39.3927102,1995.9,1995.6,2.90695]
[1617338236198,2.0,1995.8,1995.6,2.90695]
[1617338236599,73.9505,1995.6,1994.8,77.6065]
[1617338236797,76.2143,1995.6,1994.8,77.6065]
[1617338237197,2.06517431,1995.0,1994.8,77.6065]
[1617338237397,3.64587431,1995.0,1994.8,77.6065]
[1617338237900,3.64587431,1995.0,1994.9,2.90695]
[1617338238602,1.5807,1995.0,1994.9,2.90695]
[1617338242401,4.97057569,1995.1,1994.9,2.90695]
[1617338244507,2.06267489,1995.0,1994.9,2.90695]
[1617338245821,83.7798,1994.9,1993.9,2.0]
[1617338246023,83.7798,1994.9,1994.8,2.90695]
[1617338246416,90.29953867,1994.9,1994.8,2.90695]
[1617338247308,90.29953867,1994.9,1993.7,83.7651]
[1617338247708,0.05875963,1993.8,1993.7,83.7651]
[1617338248107,0.05875963,1993.8,1993.7,86.67205]
[1617338248308,0.70504674,1994.2,1993.7,86.67205]
[1617338248808,0.70478451,1994.1,1993.7,86.67205]
[1617338249209,0.70470752,1994.0,1993.7,86.67205]
[1617338250011,0.70470752,1994.0,1993.9,2.90695]
[1617338250210,2.90695,1994.1,1993.9,2.90695]
[1617338253112,0.70210567,1994.3,1993.9,2.90695]
[1617338253512,4.51494037,1994.8,1993.9,2.90695]
[1617338253513,0.70242479,1994.4,1993.9,2.90695]
[1617338254213,3.60937479,1994.4,1994.3,2.90695]
[1617338254612,2.90695,1994.4,1994.3,2.90695]
[1617338254812,0.70271656,1994.5,1994.3,2.90695]
[1617338256926,1.29703667,1994.6,1994.3,2.90695]
[1617338258124,1.29703667,1994.6,1994.5,2.90695]
[1617338258924,0.59396895,1994.6,1994.5,2.90695]
[1617338259325,1.29689982,1994.6,1994.5,2.90695]
[1617338261727,69.09818251,1994.7,1994.5,2.90695]
[1617338262827,69.09818251,1994.7,1994.5,4.50145]
[1617338263930,68.39485,1994.7,1994.5,4.50145]
[1617338264229,69.09794799,1994.7,1994.5,4.50145]
[1617338265633,68.39485,1994.7,1994.5,4.50145]
[1617338266831,69.0980556,1994.7,1994.5,4.50145]
[1617338269032,68.39485,1994.7,1994.5,4.50145]
[1617338269231,65.4879,1994.7,1994.5,4.50145]
[1617338269431,66.19131853,1994.7,1994.5,4.50145]
[1617338269831,65.4879,1994.7,1994.5,4.50145]
[1617338270039,65.18980868,1994.7,1994.5,4.50145]
[1617338270932,65.18980868,1994.7,1994.5,2.90695]
[1617338271233,0.70328328,1994.6,1994.5,2.90695]
[1617338274236,0.70328328,1994.6,1994.5,1.13335]
[1617338274436,4.19585,1994.7,1994.2,2.90695]
[1617338274437,65.6495,1994.5,1994.2,2.90695]
[1617338274837,1.30166128,1994.4,1994.2,2.90695]
[1617338276239,0.70233724,1994.3,1994.2,2.90695]
[1617338276438,4.20763824,1994.3,1994.2,2.90695]
[1617338276838,69.31053824,1994.3,1994.2,2.90695]
[1617338277037,68.30913824,1994.3,1994.2,2.90695]
[1617338278741,67.71078724,1994.3,1994.2,2.90695]
[1617338278943,65.1029,1994.3,1994.2,2.90695]
[1617338281541,65.1029,1994.3,1994.2,4.00535]
[1617338283844,65.1029,1994.3,1994.2,2.90695]
[1617338284044,64.1015,1994.3,1994.2,2.90695]
[1617338284246,2.90695,1994.6,1994.2,2.90695]
[1617338284647,2.90695,1994.6,1994.5,2.90695]
[1617338285852,3.84501983,1994.6,1994.5,2.90695]
[1617338286756,0.93806983,1994.6,1993.5,1.2285]
[1617338286955,0.93806983,1994.6,1993.4,2.0]
[1617338287157,63.4365,1993.7,1993.4,2.0]
[1617338289158,63.4365,1993.7,1993.6,2.90695]
[1617338291058,62.4351,1993.7,1993.6,2.90695]
[1617338291660,0.05861279,1993.9,1993.6,2.90695]
[1617338293160,0.05861279,1993.9,1993.8,2.90695]
[1617338294164,2.90695,1994.1,1993.8,2.90695]
[1617338294365,72.85355,1994.1,1993.8,2.90695]
[1617338295164,0.05856055,1993.9,1992.8,33.1408]
[1617338295865,0.05854953,1993.8,1992.8,33.1408]
[1617338296868,0.05854679,1993.9,1992.8,33.1408]
[1617338297268,0.05854679,1993.9,1993.8,2.90695]
[1617338297467,0.05854679,1993.9,1993.8,4.23455]
[1617338298067,4.07788584,1994.8,1993.8,4.23455]
[1617338299268,4.07788584,1994.8,1994.6,2.90695]
[1617338299868,4.07788584,1994.8,1993.8,1.3276]
[1617338300068,4.07788584,1994.8,1992.8,31.1408]
[1617338300268,4.07788584,1994.8,1992.8,1.1408]
[1617338300468,4.07788584,1994.8,1992.9,30.0]
[1617338300668,82.9876,1993.8,1992.9,31.2477]
[1617338300868,82.9876,1993.8,1993.0,2.0]
[1617338301268,82.9876,1993.8,1993.7,2.90695]
[1617338304479,1.17207345,1994.7,1993.7,2.90695]
[1617338305070,68.6542,1994.6,1993.7,2.90695]
[1617338305269,68.6542,1994.6,1994.5,2.90695]
[1617338305471,68.6542,1994.6,1994.5,4.40675]
[1617338305671,69.79466126,1994.6,1994.5,4.40675]